[Event "Early-Titled-Tuesday-Blitz-September-26-2023"]
[Site "Chess.com"]
[Date "2023.09.26"]
[Round "9"]
[White "LileKoridze"]
[Black "GMJustin"]
[Result "1-0"]
[WhiteElo "2346"]
[BlackElo "2226"]
[TimeControl "180+1"]
[EndTime "9:44:34 PDT"]
[Termination "LileKoridze won by resignation"]

1. d4 {[%clk 0:03:00.9]} 1... Nf6 {[%clk 0:02:45.9]} 2. c4 {[%clk 0:03:00.6]}
2... e6 {[%clk 0:02:43.9]} 3. Nf3 {[%clk 0:03:00.2]} 3... c6 {[%clk 0:02:43.6]}
4. e3 {[%clk 0:02:58.9]} 4... d5 {[%clk 0:02:40.6]} 5. Bd3 {[%clk 0:02:58.1]}
5... dxc4 {[%clk 0:02:31.2]} 6. Bxc4 {[%clk 0:02:58]} 6... c5 {[%clk 0:02:29.3]}
7. O-O {[%clk 0:02:55.4]} 7... Nc6 {[%clk 0:02:07.7]} 8. Nc3 {[%clk 0:02:51.1]}
8... Be7 {[%clk 0:01:44.9]} 9. dxc5 {[%clk 0:02:33.6]} 9... Bxc5 {[%clk
0:01:24.7]} 10. Qc2 {[%clk 0:02:28.3]} 10... O-O {[%clk 0:01:20.2]} 11. Rd1
{[%clk 0:02:24.2]} 11... Qe7 {[%clk 0:01:18.7]} 12. a3 {[%clk 0:01:59.4]} 12...
a6 {[%clk 0:01:08.1]} 13. b4 {[%clk 0:01:58.7]} 13... Ba7 {[%clk 0:01:06.3]} 14.
Bb2 {[%clk 0:01:50.9]} 14... b5 {[%clk 0:00:56]} 15. Bd3 {[%clk 0:01:45.7]}
15... Bb7 {[%clk 0:00:50.7]} 16. Ne4 {[%clk 0:01:05.2]} 16... Nd5 {[%clk
0:00:48.1]} 17. Nc5 {[%clk 0:01:03.2]} 17... Ncxb4 {[%clk 0:00:37.8]} 18. axb4
{[%clk 0:01:02.1]} 18... Nxb4 {[%clk 0:00:36.1]} 19. Qc3 {[%clk 0:01:01]} 19...
f6 {[%clk 0:00:28.5]} 20. Nxb7 {[%clk 0:00:50.9]} 20... Nxd3 {[%clk 0:00:26.7]}
21. Qxd3 {[%clk 0:00:44.2]} 21... Qxb7 {[%clk 0:00:25.4]} 22. Qd6 {[%clk
0:00:44]} 22... e5 {[%clk 0:00:16.6]} 23. Qe6+ {[%clk 0:00:24.7]} 1-0

[Event "Early-Titled-Tuesday-Blitz-September-26-2023"]
[Site "Chess.com"]
[Date "2023.09.26"]
[Round "9"]
[White "kereswasbest"]
[Black "Barbix1"]
[Result "1-0"]
[WhiteElo "2312"]
[BlackElo "2337"]
[TimeControl "180+1"]
[EndTime "9:44:41 PDT"]
[Termination "kereswasbest won on time"]

1. d4 {[%clk 0:03:00.9]} 1... Nf6 {[%clk 0:02:58.2]} 2. c4 {[%clk 0:03:01.5]}
2... g6 {[%clk 0:02:58.2]} 3. Nc3 {[%clk 0:03:02]} 3... d5 {[%clk 0:02:58.4]} 4.
cxd5 {[%clk 0:03:01.7]} 4... Nxd5 {[%clk 0:02:59.3]} 5. e4 {[%clk 0:03:02]} 5...
Nxc3 {[%clk 0:02:59.4]} 6. bxc3 {[%clk 0:03:02.7]} 6... Bg7 {[%clk 0:02:59.3]}
7. Be3 {[%clk 0:03:02.4]} 7... c5 {[%clk 0:02:56.4]} 8. Qd2 {[%clk 0:03:02.5]}
8... Qa5 {[%clk 0:02:43.5]} 9. Nf3 {[%clk 0:02:57.5]} 9... O-O {[%clk
0:02:32.1]} 10. Rc1 {[%clk 0:02:54.6]} 10... cxd4 {[%clk 0:02:29.9]} 11. cxd4
{[%clk 0:02:54.3]} 11... Qxd2+ {[%clk 0:02:28.2]} 12. Kxd2 {[%clk 0:02:55]}
12... Nc6 {[%clk 0:02:23]} 13. d5 {[%clk 0:02:52]} 13... Ne5 {[%clk 0:02:17]}
14. Nxe5 {[%clk 0:02:48.6]} 14... Bxe5 {[%clk 0:02:17.9]} 15. f4 {[%clk
0:02:46.2]} 15... Bg7 {[%clk 0:02:12.2]} 16. Rc7 {[%clk 0:02:40.1]} 16... e6
{[%clk 0:01:08.7]} 17. d6 {[%clk 0:02:38.7]} 17... Rd8 {[%clk 0:01:08.8]} 18. e5
{[%clk 0:02:33.5]} 18... Bd7 {[%clk 0:01:00.6]} 19. Bd3 {[%clk 0:02:10]} 19...
b6 {[%clk 0:00:48.1]} 20. Rhc1 {[%clk 0:02:03.9]} 20... f5 {[%clk 0:00:45.8]}
21. Ba6 {[%clk 0:01:53.6]} 21... Kf8 {[%clk 0:00:36.3]} 22. Bb7 {[%clk
0:01:39.1]} 22... Rab8 {[%clk 0:00:35.7]} 23. g3 {[%clk 0:01:36.5]} 23... Ke8
{[%clk 0:00:31.2]} 24. R1c4 {[%clk 0:01:27.1]} 24... Bf8 {[%clk 0:00:22.6]} 25.
Kc3 {[%clk 0:01:18.3]} 25... a5 {[%clk 0:00:18.2]} 26. Kd2 {[%clk 0:01:12.1]}
26... Bb5 {[%clk 0:00:18.2]} 27. Bc6+ {[%clk 0:01:09.8]} 27... Bxc6 {[%clk
0:00:18]} 28. R4xc6 {[%clk 0:01:10.4]} 28... b5 {[%clk 0:00:17.4]} 29. Ba7
{[%clk 0:01:09.2]} 29... Ra8 {[%clk 0:00:13.4]} 30. Bb6 {[%clk 0:01:09]} 30...
a4 {[%clk 0:00:10.7]} 31. Kc3 {[%clk 0:01:06.3]} 31... Rd7 {[%clk 0:00:04.8]}
32. Rxd7 {[%clk 0:01:02]} 32... Kxd7 {[%clk 0:00:05.7]} 33. Rc7+ {[%clk
0:01:02]} 33... Ke8 {[%clk 0:00:06.2]} 34. d7+ {[%clk 0:00:59]} 34... Ke7 {[%clk
0:00:04.7]} 35. Rc8 {[%clk 0:00:57.9]} 1-0

[Event "Early-Titled-Tuesday-Blitz-September-26-2023"]
[Site "Chess.com"]
[Date "2023.09.26"]
[Round "9"]
[White "FREDERICKtheMATE"]
[Black "attack2mateU"]
[Result "0-1"]
[WhiteElo "2607"]
[BlackElo "2741"]
[TimeControl "180+1"]
[EndTime "9:44:43 PDT"]
[Termination "attack2mateU won by resignation"]

1. Nf3 {[%clk 0:03:00.9]} 1... c5 {[%clk 0:02:59.7]} 2. g3 {[%clk 0:03:01.2]}
2... Nc6 {[%clk 0:02:59]} 3. Bg2 {[%clk 0:03:01.8]} 3... e5 {[%clk 0:02:59.7]}
4. c4 {[%clk 0:03:01.3]} 4... g6 {[%clk 0:02:59.8]} 5. Nc3 {[%clk 0:03:00.9]}
5... Bg7 {[%clk 0:03:00]} 6. O-O {[%clk 0:03:01.1]} 6... d6 {[%clk 0:03:00.7]}
7. d3 {[%clk 0:03:01.1]} 7... Nge7 {[%clk 0:03:00.6]} 8. Ne1 {[%clk 0:02:56.6]}
8... Be6 {[%clk 0:03:00.3]} 9. Nd5 {[%clk 0:02:54.8]} 9... O-O {[%clk
0:02:59.1]} 10. Nc2 {[%clk 0:02:54.9]} 10... Rb8 {[%clk 0:02:59.3]} 11. Nce3
{[%clk 0:02:54.3]} 11... a6 {[%clk 0:02:56.1]} 12. a3 {[%clk 0:02:52.6]} 12...
b5 {[%clk 0:02:55.1]} 13. cxb5 {[%clk 0:02:52.4]} 13... axb5 {[%clk 0:02:55.1]}
14. b4 {[%clk 0:02:53]} 14... Nxd5 {[%clk 0:02:47.5]} 15. Bxd5 {[%clk 0:02:51]}
15... Qd7 {[%clk 0:02:26.1]} 16. Rb1 {[%clk 0:02:46.5]} 16... cxb4 {[%clk
0:02:06.3]} 17. axb4 {[%clk 0:02:47.4]} 17... Ne7 {[%clk 0:02:06.6]} 18. Bxe6
{[%clk 0:02:43.1]} 18... Qxe6 {[%clk 0:02:07.5]} 19. Qb3 {[%clk 0:02:37.5]}
19... d5 {[%clk 0:02:07.1]} 20. Bb2 {[%clk 0:02:34.7]} 20... Rfd8 {[%clk
0:01:57.2]} 21. Ng2 {[%clk 0:02:31.7]} 21... Qh3 {[%clk 0:01:39.2]} 22. f4
{[%clk 0:02:26.1]} 22... e4 {[%clk 0:01:27]} 23. Bxg7 {[%clk 0:02:22.4]} 23...
Kxg7 {[%clk 0:01:27.9]} 24. Ra1 {[%clk 0:02:20.5]} 24... Nf5 {[%clk 0:01:27.7]}
25. Ra7 {[%clk 0:02:15]} 25... Rbc8 {[%clk 0:00:37.6]} 26. dxe4 {[%clk
0:02:11.1]} 26... Nd4 {[%clk 0:00:38.3]} 27. Qd3 {[%clk 0:02:06.3]} 27... dxe4
{[%clk 0:00:37.8]} 28. Qxe4 {[%clk 0:02:06.2]} 28... Rc2 {[%clk 0:00:38]} 29.
Re1 {[%clk 0:01:41.3]} 29... Qg4 {[%clk 0:00:29.4]} 30. Kf2 {[%clk 0:01:36.8]}
30... Rd2 {[%clk 0:00:14]} 31. Nh4 {[%clk 0:01:22.9]} 31... Qh3 {[%clk 0:00:10]}
32. Qg2 {[%clk 0:01:11.2]} 32... Qe6 {[%clk 0:00:08.2]} 33. Kf1 {[%clk
0:01:07.3]} 33... Nc2 {[%clk 0:00:04.5]} 34. Qf3 {[%clk 0:00:58.4]} 34... Nxe1
{[%clk 0:00:04.7]} 35. Kxe1 {[%clk 0:00:59.3]} 35... Rd1+ {[%clk 0:00:04.7]} 36.
Kf2 {[%clk 0:00:59.4]} 36... Qb6+ {[%clk 0:00:05.4]} 37. Qe3 {[%clk 0:00:57.3]}
37... Rf1+ {[%clk 0:00:05.4]} 38. Kxf1 {[%clk 0:00:56.9]} 38... Qxe3 {[%clk
0:00:06.1]} 0-1

[Event "Early-Titled-Tuesday-Blitz-September-26-2023"]
[Site "Chess.com"]
[Date "2023.09.26"]
[Round "9"]
[White "AndrewB92"]
[Black "Mystery2007"]
[Result "0-1"]
[WhiteElo "2363"]
[BlackElo "2478"]
[TimeControl "180+1"]
[EndTime "9:44:44 PDT"]
[Termination "Mystery2007 won on time"]

1. d4 {[%clk 0:03:00.9]} 1... e6 {[%clk 0:02:59.1]} 2. c4 {[%clk 0:03:01.5]}
2... d5 {[%clk 0:02:59.4]} 3. Nc3 {[%clk 0:03:01.9]} 3... Nf6 {[%clk 0:02:59.8]}
4. Nf3 {[%clk 0:03:02.1]} 4... c6 {[%clk 0:02:59.3]} 5. Bg5 {[%clk 0:03:02]}
5... Nbd7 {[%clk 0:02:58.7]} 6. e3 {[%clk 0:03:02]} 6... Qa5 {[%clk 0:02:59.1]}
7. Nd2 {[%clk 0:03:01]} 7... dxc4 {[%clk 0:02:54.7]} 8. Bxf6 {[%clk 0:03:00.9]}
8... Nxf6 {[%clk 0:02:53.2]} 9. Nxc4 {[%clk 0:03:01.2]} 9... Qc7 {[%clk
0:02:50.9]} 10. Bd3 {[%clk 0:03:00.9]} 10... a6 {[%clk 0:02:30.6]} 11. O-O
{[%clk 0:02:58.8]} 11... b5 {[%clk 0:02:30.1]} 12. Ne5 {[%clk 0:02:55.6]} 12...
Bd6 {[%clk 0:02:21.7]} 13. f4 {[%clk 0:02:52.1]} 13... Bb7 {[%clk 0:02:21.8]}
14. Rc1 {[%clk 0:02:35.7]} 14... c5 {[%clk 0:02:04.1]} 15. dxc5 {[%clk
0:01:52.7]} 15... Bxc5 {[%clk 0:01:56]} 16. Kh1 {[%clk 0:01:31.4]} 16... Bxe3
{[%clk 0:01:44]} 17. Nxb5 {[%clk 0:01:22.6]} 17... Qxc1 {[%clk 0:01:35.1]} 18.
Nd6+ {[%clk 0:01:21.1]} 18... Ke7 {[%clk 0:01:31.3]} 19. Qb3 {[%clk 0:01:12.3]}
19... Bd5 {[%clk 0:01:15.8]} 20. Rxc1 {[%clk 0:00:32.1]} 20... Bxb3 {[%clk
0:01:14.5]} 21. Re1 {[%clk 0:00:11.3]} 21... Bxf4 {[%clk 0:00:54]} 22. Ndxf7
{[%clk 0:00:05.6]} 22... Bxe5 {[%clk 0:00:50.7]} 23. Nxh8 {[%clk 0:00:04.3]}
23... Bxa2 {[%clk 0:00:39.7]} 24. Rxe5 {[%clk 0:00:02.5]} 24... Rxh8 {[%clk
0:00:39.5]} 25. Bxa6 {[%clk 0:00:01.5]} 25... Rb8 {[%clk 0:00:37]} 0-1

[Event "Early-Titled-Tuesday-Blitz-September-26-2023"]
[Site "Chess.com"]
[Date "2023.09.26"]
[Round "9"]
[White "Jaka_Brilej"]
[Black "Kopytkin"]
[Result "1-0"]
[WhiteElo "2502"]
[BlackElo "2367"]
[TimeControl "180+1"]
[EndTime "9:44:48 PDT"]
[Termination "Jaka_Brilej won on time"]

1. e4 {[%clk 0:03:00.9]} 1... Nf6 {[%clk 0:02:59.3]} 2. e5 {[%clk 0:02:59.6]}
2... Nd5 {[%clk 0:02:59.4]} 3. d4 {[%clk 0:02:59.7]} 3... d6 {[%clk 0:02:59.5]}
4. c4 {[%clk 0:03:00.2]} 4... Nb6 {[%clk 0:02:59.6]} 5. f4 {[%clk 0:03:00.8]}
5... dxe5 {[%clk 0:02:59.5]} 6. fxe5 {[%clk 0:03:01]} 6... c5 {[%clk 0:02:58.3]}
7. d5 {[%clk 0:03:00.3]} 7... e6 {[%clk 0:02:58.7]} 8. Nc3 {[%clk 0:02:58.6]}
8... exd5 {[%clk 0:02:59]} 9. cxd5 {[%clk 0:02:59.5]} 9... c4 {[%clk 0:02:59.4]}
10. Bxc4 {[%clk 0:02:48.6]} 10... Bc5 {[%clk 0:02:59.2]} 11. Nf3 {[%clk
0:02:39.3]} 11... O-O {[%clk 0:02:56.4]} 12. Bb3 {[%clk 0:02:27]} 12... Bg4
{[%clk 0:02:51.5]} 13. Bf4 {[%clk 0:02:24.2]} 13... N8d7 {[%clk 0:02:46.5]} 14.
h3 {[%clk 0:02:14.9]} 14... Bh5 {[%clk 0:02:40]} 15. Qe2 {[%clk 0:02:03]} 15...
Re8 {[%clk 0:02:30.3]} 16. e6 {[%clk 0:01:58.8]} 16... Nf6 {[%clk 0:02:21]} 17.
O-O-O {[%clk 0:01:57.2]} 17... Rc8 {[%clk 0:01:51.7]} 18. Kb1 {[%clk 0:01:52.9]}
18... Bb4 {[%clk 0:01:43.8]} 19. Be5 {[%clk 0:01:42.3]} 19... Bxc3 {[%clk
0:01:29.8]} 20. bxc3 {[%clk 0:01:37.4]} 20... Nfxd5 {[%clk 0:00:49.8]} 21. c4
{[%clk 0:01:35.6]} 21... fxe6 {[%clk 0:00:49.1]} 22. cxd5 {[%clk 0:01:35.6]}
22... exd5 {[%clk 0:00:49.3]} 23. Rhe1 {[%clk 0:01:16]} 23... Qd7 {[%clk
0:00:38]} 24. Qb2 {[%clk 0:01:08.5]} 24... Nc4 {[%clk 0:00:31.8]} 25. Bxc4
{[%clk 0:01:00.6]} 25... Rxc4 {[%clk 0:00:32.7]} 26. Bc3 {[%clk 0:00:57.6]}
26... Rec8 {[%clk 0:00:31.3]} 27. Rc1 {[%clk 0:00:57.8]} 27... Bg6+ {[%clk
0:00:29.5]} 28. Ka1 {[%clk 0:00:57.9]} 28... b5 {[%clk 0:00:18.8]} 29. Ne5
{[%clk 0:00:57.5]} 29... Qb7 {[%clk 0:00:14.4]} 30. Nxc4 {[%clk 0:00:57.5]}
30... dxc4 {[%clk 0:00:14.7]} 31. Bb4 {[%clk 0:00:53.3]} 31... a5 {[%clk
0:00:14.2]} 32. Re7 {[%clk 0:00:52.5]} 32... Qxe7 {[%clk 0:00:07.6]} 33. Bxe7
{[%clk 0:00:53.4]} 33... b4 {[%clk 0:00:06.4]} 34. Qe5 {[%clk 0:00:51.6]} 34...
c3 {[%clk 0:00:05.1]} 35. Qe6+ {[%clk 0:00:51.8]} 1-0

[Event "Early-Titled-Tuesday-Blitz-September-26-2023"]
[Site "Chess.com"]
[Date "2023.09.26"]
[Round "9"]
[White "borocotoajua"]
[Black "KorolDimitriy75"]
[Result "0-1"]
[WhiteElo "2560"]
[BlackElo "2413"]
[TimeControl "180+1"]
[EndTime "9:44:50 PDT"]
[Termination "KorolDimitriy75 won by checkmate"]

1. d4 {[%clk 0:02:57.4]} 1... Nf6 {[%clk 0:02:59.6]} 2. Nf3 {[%clk 0:02:57.7]}
2... g6 {[%clk 0:02:59.7]} 3. c4 {[%clk 0:02:58.2]} 3... c5 {[%clk 0:02:59.9]}
4. d5 {[%clk 0:02:57.6]} 4... b5 {[%clk 0:02:59.7]} 5. g3 {[%clk 0:02:52.6]}
5... bxc4 {[%clk 0:02:58.3]} 6. Nc3 {[%clk 0:02:52]} 6... d6 {[%clk 0:02:58.7]}
7. Bg2 {[%clk 0:02:52.3]} 7... Bg7 {[%clk 0:02:59.3]} 8. O-O {[%clk 0:02:53]}
8... O-O {[%clk 0:03:00]} 9. e4 {[%clk 0:02:38.5]} 9... Nbd7 {[%clk 0:02:59]}
10. Re1 {[%clk 0:02:35.5]} 10... Ng4 {[%clk 0:02:52.3]} 11. Bf1 {[%clk
0:02:17.4]} 11... Ba6 {[%clk 0:02:37.2]} 12. Qa4 {[%clk 0:02:09.1]} 12... Qc8
{[%clk 0:02:29]} 13. Bg5 {[%clk 0:01:53.6]} 13... Re8 {[%clk 0:02:12.8]} 14. Bh3
{[%clk 0:01:37.7]} 14... h5 {[%clk 0:01:55.5]} 15. Kg2 {[%clk 0:00:51.6]} 15...
Rb8 {[%clk 0:01:53.7]} 16. Rab1 {[%clk 0:00:50.3]} 16... Rb4 {[%clk 0:01:31.3]}
17. Qd1 {[%clk 0:00:39.9]} 17... Qb7 {[%clk 0:01:27.9]} 18. Nd2 {[%clk
0:00:28.5]} 18... Rxb2 {[%clk 0:01:24]} 19. Rxb2 {[%clk 0:00:29.4]} 19... Qxb2
{[%clk 0:01:23.9]} 20. Qa4 {[%clk 0:00:30.3]} 20... Bxc3 {[%clk 0:01:00.8]} 21.
Qxd7 {[%clk 0:00:29.5]} 21... Rf8 {[%clk 0:00:54.2]} 22. Rb1 {[%clk 0:00:28.8]}
22... Qc2 {[%clk 0:00:48.2]} 23. Bxg4 {[%clk 0:00:16.9]} 23... Bxd2 {[%clk
0:00:43.3]} 24. Bxe7 {[%clk 0:00:09.6]} 24... Qxe4+ {[%clk 0:00:30.3]} 25. Bf3
{[%clk 0:00:09.1]} 25... Qxb1 {[%clk 0:00:30.1]} 26. Bxf8 {[%clk 0:00:09.7]}
26... c3 {[%clk 0:00:28.4]} 27. Be7 {[%clk 0:00:06.3]} 27... Qf1# {[%clk
0:00:27.2]} 0-1

[Event "Early-Titled-Tuesday-Blitz-September-26-2023"]
[Site "Chess.com"]
[Date "2023.09.26"]
[Round "9"]
[White "Antik5"]
[Black "GeorgiosSouleidis"]
[Result "1-0"]
[WhiteElo "2409"]
[BlackElo "2540"]
[TimeControl "180+1"]
[EndTime "9:44:55 PDT"]
[Termination "Antik5 won on time"]

1. c4 {[%clk 0:02:14.5]} 1... e5 {[%clk 0:02:58.5]} 2. Nc3 {[%clk 0:02:14.3]}
2... Nf6 {[%clk 0:02:56.4]} 3. Nf3 {[%clk 0:02:14.4]} 3... e4 {[%clk 0:02:54.6]}
4. Ng5 {[%clk 0:02:13.4]} 4... c6 {[%clk 0:02:54.2]} 5. Ngxe4 {[%clk 0:02:13.6]}
5... Nxe4 {[%clk 0:02:54.7]} 6. Nxe4 {[%clk 0:02:14.5]} 6... d5 {[%clk
0:02:55.6]} 7. cxd5 {[%clk 0:02:15]} 7... cxd5 {[%clk 0:02:56.5]} 8. Ng3 {[%clk
0:02:15.5]} 8... h5 {[%clk 0:02:56.6]} 9. e3 {[%clk 0:02:16]} 9... h4 {[%clk
0:02:57.2]} 10. Ne2 {[%clk 0:02:16.2]} 10... Nc6 {[%clk 0:02:57.7]} 11. d4
{[%clk 0:01:55.4]} 11... Qf6 {[%clk 0:02:57.5]} 12. Bd2 {[%clk 0:01:48.2]} 12...
Bf5 {[%clk 0:02:41.4]} 13. Nf4 {[%clk 0:01:26.3]} 13... Bd6 {[%clk 0:02:39]} 14.
Nxd5 {[%clk 0:01:20.2]} 14... Qg6 {[%clk 0:02:39]} 15. f3 {[%clk 0:00:50.9]}
15... Bxh2 {[%clk 0:02:02.6]} 16. Rxh2 {[%clk 0:00:40.7]} 16... Qg3+ {[%clk
0:02:01.6]} 17. Ke2 {[%clk 0:00:41.3]} 17... Qxh2 {[%clk 0:02:00.1]} 18. e4
{[%clk 0:00:39.2]} 18... O-O-O {[%clk 0:01:23.5]} 19. Bf4 {[%clk 0:00:34.9]}
19... Qg1 {[%clk 0:01:23.6]} 20. Be3 {[%clk 0:00:32.9]} 20... Qh2 {[%clk
0:01:12.3]} 21. Bf4 {[%clk 0:00:32.6]} 21... Qh1 {[%clk 0:01:12.2]} 22. Rc1
{[%clk 0:00:24.9]} 22... Bd7 {[%clk 0:00:39.1]} 23. Qa4 {[%clk 0:00:20.8]} 23...
g5 {[%clk 0:00:21.7]} 24. Nb6+ {[%clk 0:00:19.2]} 1-0

[Event "Early-Titled-Tuesday-Blitz-September-26-2023"]
[Site "Chess.com"]
[Date "2023.09.26"]
[Round "9"]
[White "platy3"]
[Black "SAInt_666"]
[Result "1-0"]
[WhiteElo "2874"]
[BlackElo "2686"]
[TimeControl "180+1"]
[EndTime "9:45:07 PDT"]
[Termination "platy3 won on time"]

1. e4 {[%clk 0:02:58.3]} 1... c5 {[%clk 0:02:59.7]} 2. Nf3 {[%clk 0:02:57.3]}
2... d6 {[%clk 0:03:00.1]} 3. d4 {[%clk 0:02:57.1]} 3... cxd4 {[%clk 0:03:01]}
4. Nxd4 {[%clk 0:02:57.8]} 4... Nf6 {[%clk 0:03:01.6]} 5. Nc3 {[%clk 0:02:58.5]}
5... Nc6 {[%clk 0:03:01.6]} 6. Bg5 {[%clk 0:02:57.9]} 6... e6 {[%clk 0:03:02]}
7. Qd2 {[%clk 0:02:58.5]} 7... a6 {[%clk 0:03:02.6]} 8. O-O-O {[%clk 0:02:59.1]}
8... Bd7 {[%clk 0:03:03.2]} 9. Kb1 {[%clk 0:02:59.4]} 9... Be7 {[%clk
0:03:02.7]} 10. f3 {[%clk 0:02:59.2]} 10... Nxd4 {[%clk 0:03:01]} 11. Qxd4
{[%clk 0:02:58.9]} 11... Qc7 {[%clk 0:03:01.7]} 12. h4 {[%clk 0:02:57.9]} 12...
b5 {[%clk 0:03:01.2]} 13. Qd2 {[%clk 0:02:57.3]} 13... h6 {[%clk 0:02:45.9]} 14.
Be3 {[%clk 0:02:55.7]} 14... h5 {[%clk 0:02:45.2]} 15. Bg5 {[%clk 0:02:54.4]}
15... b4 {[%clk 0:02:36.5]} 16. Ne2 {[%clk 0:02:54]} 16... a5 {[%clk 0:02:35.3]}
17. c4 {[%clk 0:02:47.9]} 17... Bc6 {[%clk 0:01:40.1]} 18. Nd4 {[%clk
0:02:47.7]} 18... Rc8 {[%clk 0:01:36.7]} 19. Nb5 {[%clk 0:02:28.4]} 19... Bxb5
{[%clk 0:01:31]} 20. cxb5 {[%clk 0:02:29.3]} 20... Nd7 {[%clk 0:01:29.8]} 21.
Bxe7 {[%clk 0:02:19]} 21... Kxe7 {[%clk 0:01:30.7]} 22. Be2 {[%clk 0:02:19.4]}
22... Qc5 {[%clk 0:01:12.5]} 23. Rc1 {[%clk 0:02:16.4]} 23... Qe5 {[%clk
0:01:10.4]} 24. Qe3 {[%clk 0:02:12.2]} 24... Rc5 {[%clk 0:00:59.5]} 25. f4
{[%clk 0:02:09.3]} 25... Qf6 {[%clk 0:00:58.4]} 26. e5 {[%clk 0:02:06.7]} 26...
Rxc1+ {[%clk 0:00:32.8]} 27. Rxc1 {[%clk 0:02:07.6]} 27... dxe5 {[%clk
0:00:33.3]} 28. Rc7 {[%clk 0:02:08.1]} 28... Rd8 {[%clk 0:00:32.9]} 29. b6
{[%clk 0:02:02]} 29... Qf5+ {[%clk 0:00:15]} 30. Bd3 {[%clk 0:02:00.8]} 30...
exf4 {[%clk 0:00:15.4]} 31. Qd4 {[%clk 0:01:52.5]} 31... Qd5 {[%clk 0:00:11.7]}
32. Qxd5 {[%clk 0:01:50.9]} 32... exd5 {[%clk 0:00:12.6]} 33. b7 {[%clk
0:01:51.7]} 33... Kd6 {[%clk 0:00:08.4]} 34. Rc8 {[%clk 0:01:51]} 34... Ke7
{[%clk 0:00:09]} 35. Kc2 {[%clk 0:01:34.3]} 35... Nb8 {[%clk 0:00:05.7]} 36. Kb3
{[%clk 0:01:30.3]} 36... f6 {[%clk 0:00:02.6]} 37. Ka4 {[%clk 0:01:26.7]} 37...
g5 {[%clk 0:00:02.5]} 38. hxg5 {[%clk 0:01:13.8]} 38... fxg5 {[%clk 0:00:03.4]}
39. Kxa5 {[%clk 0:01:14.4]} 39... h4 {[%clk 0:00:03.7]} 40. Kb6 {[%clk
0:01:13.4]} 40... f3 {[%clk 0:00:01.8]} 41. gxf3 {[%clk 0:01:13.5]} 41... h3
{[%clk 0:00:02]} 42. Bf1 {[%clk 0:01:13.9]} 42... h2 {[%clk 0:00:01.9]} 43. Bg2
{[%clk 0:01:14.5]} 43... Rd6+ {[%clk 0:00:02.1]} 44. Ka7 {[%clk 0:01:11.8]}
44... Nd7 {[%clk 0:00:02.7]} 45. Rc7 {[%clk 0:01:11.4]} 45... Kd8 {[%clk
0:00:01.2]} 46. Rc8+ {[%clk 0:01:06.6]} 1-0

[Event "Early-Titled-Tuesday-Blitz-September-26-2023"]
[Site "Chess.com"]
[Date "2023.09.26"]
[Round "9"]
[White "CSB7"]
[Black "Hrant_ChessMood"]
[Result "1-0"]
[WhiteElo "2743"]
[BlackElo "2900"]
[TimeControl "180+1"]
[EndTime "9:45:08 PDT"]
[Termination "CSB7 won by checkmate"]

1. d4 {[%clk 0:02:59.5]} 1... Nf6 {[%clk 0:02:37.7]} 2. c4 {[%clk 0:02:59]} 2...
g6 {[%clk 0:02:36.6]} 3. Nc3 {[%clk 0:02:58]} 3... Bg7 {[%clk 0:02:37.1]} 4. Nf3
{[%clk 0:02:51.1]} 4... d6 {[%clk 0:02:37.3]} 5. e4 {[%clk 0:02:47.2]} 5... O-O
{[%clk 0:02:36.5]} 6. Be2 {[%clk 0:02:44.3]} 6... c5 {[%clk 0:02:35.8]} 7. h3
{[%clk 0:02:38]} 7... cxd4 {[%clk 0:02:31.8]} 8. Nxd4 {[%clk 0:02:38.9]} 8...
Nc6 {[%clk 0:02:32.2]} 9. Be3 {[%clk 0:02:39.2]} 9... Bd7 {[%clk 0:02:32]} 10.
O-O {[%clk 0:02:39.2]} 10... Nxd4 {[%clk 0:02:32.2]} 11. Bxd4 {[%clk 0:02:40.1]}
11... Bc6 {[%clk 0:02:32.5]} 12. Qc2 {[%clk 0:02:40.4]} 12... a5 {[%clk
0:02:31.5]} 13. Rad1 {[%clk 0:02:40.9]} 13... a4 {[%clk 0:02:31.6]} 14. c5
{[%clk 0:02:39]} 14... Qa5 {[%clk 0:02:14.5]} 15. cxd6 {[%clk 0:02:38.8]} 15...
exd6 {[%clk 0:02:15.4]} 16. a3 {[%clk 0:02:37.9]} 16... Rfe8 {[%clk 0:02:14.5]}
17. Bf3 {[%clk 0:02:33.3]} 17... Rac8 {[%clk 0:02:08.6]} 18. Rfe1 {[%clk
0:02:09.2]} 18... h5 {[%clk 0:02:06.7]} 19. Qd2 {[%clk 0:02:05.8]} 19... Nd7
{[%clk 0:02:02]} 20. Bxg7 {[%clk 0:02:02.3]} 20... Kxg7 {[%clk 0:02:02.9]} 21.
Qxd6 {[%clk 0:01:55.7]} 21... Ne5 {[%clk 0:02:02.2]} 22. Qd4 {[%clk 0:01:49.5]}
22... Rcd8 {[%clk 0:01:43.4]} 23. Nd5 {[%clk 0:01:33.5]} 23... Bxd5 {[%clk
0:01:43.6]} 24. exd5 {[%clk 0:01:34]} 24... f6 {[%clk 0:01:44.3]} 25. Be2 {[%clk
0:01:25.6]} 25... Rd6 {[%clk 0:01:39.7]} 26. Qd2 {[%clk 0:00:59.9]} 26... Qb6
{[%clk 0:01:27.1]} 27. Qd4 {[%clk 0:00:53.9]} 27... Qa5 {[%clk 0:01:05.7]} 28.
Qd2 {[%clk 0:00:47.1]} 28... Qxd2 {[%clk 0:01:05.2]} 29. Rxd2 {[%clk 0:00:48]}
29... Nc4 {[%clk 0:01:05.7]} 30. Rc2 {[%clk 0:00:42.1]} 30... Nb6 {[%clk
0:00:46.2]} 31. Rc7+ {[%clk 0:00:29.4]} 31... Kh6 {[%clk 0:00:46.1]} 32. Kf1
{[%clk 0:00:20]} 32... Nxd5 {[%clk 0:00:46.3]} 33. Rxb7 {[%clk 0:00:19.8]} 33...
Nf4 {[%clk 0:00:46.1]} 34. Bf3 {[%clk 0:00:18.3]} 34... Rxe1+ {[%clk 0:00:27.1]}
35. Kxe1 {[%clk 0:00:19.2]} 35... g5 {[%clk 0:00:27.9]} 36. Be4 {[%clk
0:00:11.7]} 36... Re6 {[%clk 0:00:25.7]} 37. Rh7# {[%clk 0:00:10.6]} 1-0